[Event "Early-Titled-Tuesday-Blitz-May-28-2024"]
[Site "Chess.com"]
[Date "2024.05.28"]
[Round "2"]
[White "KnightDuta"]
[Black "PapiPapita"]
[Result "0-1"]
[WhiteElo "2715"]
[BlackElo "2449"]
[TimeControl "180+1"]
[EndTime "8:18:55 PDT"]
[Termination "PapiPapita won by checkmate"]

1. e4 {[%clk 0:03:00.9]} 1... c6 {[%clk 0:02:57.9]} 2. d4 {[%clk 0:03:00.8]}
2... d5 {[%clk 0:02:58.8]} 3. Nc3 {[%clk 0:03:00.8]} 3... dxe4 {[%clk
0:02:58.4]} 4. Nxe4 {[%clk 0:03:01.6]} 4... Nf6 {[%clk 0:02:59.1]} 5. Nxf6+
{[%clk 0:03:01.8]} 5... exf6 {[%clk 0:03:00]} 6. c3 {[%clk 0:03:02.6]} 6... Bd6
{[%clk 0:03:00.6]} 7. Bd3 {[%clk 0:03:03.3]} 7... O-O {[%clk 0:03:01.3]} 8. Qc2
{[%clk 0:03:04]} 8... Re8+ {[%clk 0:03:01.6]} 9. Ne2 {[%clk 0:03:04.7]} 9... h5
{[%clk 0:03:01.5]} 10. O-O {[%clk 0:03:04.8]} 10... Qc7 {[%clk 0:02:53.6]} 11.
h3 {[%clk 0:02:42.7]} 11... Nd7 {[%clk 0:02:52]} 12. c4 {[%clk 0:02:43]} 12...
Nf8 {[%clk 0:02:50.6]} 13. c5 {[%clk 0:02:33.5]} 13... Be7 {[%clk 0:02:49.5]}
14. Bf4 {[%clk 0:02:33.2]} 14... Qd8 {[%clk 0:02:47]} 15. Rad1 {[%clk
0:02:27.8]} 15... Be6 {[%clk 0:02:44.7]} 16. Ng3 {[%clk 0:02:26.4]} 16... g6
{[%clk 0:02:03.2]} 17. Ne4 {[%clk 0:02:25.5]} 17... Qxd4 {[%clk 0:01:53.1]} 18.
Be2 {[%clk 0:02:21.2]} 18... Qb4 {[%clk 0:01:49.2]} 19. Bd6 {[%clk 0:02:15.6]}
19... Bf5 {[%clk 0:01:39.8]} 20. Bd3 {[%clk 0:02:05.2]} 20... Bxe4 {[%clk
0:01:37.2]} 21. Bxe4 {[%clk 0:01:19.3]} 21... Bxd6 {[%clk 0:01:36.2]} 22. Bxc6
{[%clk 0:01:16.7]} 22... bxc6 {[%clk 0:01:23.3]} 23. cxd6 {[%clk 0:01:16.5]}
23... Rad8 {[%clk 0:01:17.2]} 24. Qxc6 {[%clk 0:01:14.6]} 24... Re6 {[%clk
0:01:16.4]} 25. Qa6 {[%clk 0:01:04.3]} 25... Rexd6 {[%clk 0:01:10.6]} 26. Rxd6
{[%clk 0:01:03.2]} 26... Rxd6 {[%clk 0:01:11.5]} 27. Qxa7 {[%clk 0:01:03.8]}
27... Qxb2 {[%clk 0:01:11.5]} 28. a4 {[%clk 0:01:03.6]} 28... Qd4 {[%clk
0:01:07.2]} 29. Qb8 {[%clk 0:00:59.8]} 29... Ra6 {[%clk 0:01:02.8]} 30. Re1
{[%clk 0:00:53.8]} 30... Rxa4 {[%clk 0:00:59.2]} 31. Re8 {[%clk 0:00:54.1]}
31... Qb4 {[%clk 0:00:50.9]} 32. Qc7 {[%clk 0:00:47.8]} 32... Qf4 {[%clk
0:00:45.8]} 33. Qc3 {[%clk 0:00:40.4]} 33... Rc4 {[%clk 0:00:41.8]} 34. g3
{[%clk 0:00:33.8]} 34... Rxc3 {[%clk 0:00:40.4]} 35. gxf4 {[%clk 0:00:34.3]}
35... Rxh3 {[%clk 0:00:40.2]} 36. Kg2 {[%clk 0:00:35.2]} 36... Rb3 {[%clk
0:00:40]} 37. f3 {[%clk 0:00:36.1]} 37... Kg7 {[%clk 0:00:39.9]} 38. Kg3 {[%clk
0:00:37]} 38... Ne6 {[%clk 0:00:39.4]} 39. Ra8 {[%clk 0:00:37.9]} 39... Nd4
{[%clk 0:00:39]} 40. f5 {[%clk 0:00:38.8]} 40... Rxf3+ {[%clk 0:00:37.4]} 41.
Kg2 {[%clk 0:00:38.8]} 41... Rxf5 {[%clk 0:00:37.1]} 42. Rd8 {[%clk 0:00:39.7]}
42... Rg5+ {[%clk 0:00:37]} 43. Kh3 {[%clk 0:00:40.6]} 43... Ne6 {[%clk
0:00:36.7]} 44. Rd2 {[%clk 0:00:39.5]} 44... Nf4+ {[%clk 0:00:36.6]} 45. Kh2
{[%clk 0:00:39.9]} 45... Rg2+ {[%clk 0:00:37.3]} 46. Rxg2 {[%clk 0:00:40.4]}
46... Nxg2 {[%clk 0:00:38.2]} 47. Kxg2 {[%clk 0:00:41.3]} 47... g5 {[%clk
0:00:38.5]} 48. Kh2 {[%clk 0:00:42.2]} 48... Kg6 {[%clk 0:00:39.2]} 49. Kg2
{[%clk 0:00:43.1]} 49... Kf5 {[%clk 0:00:40.1]} 50. Kh2 {[%clk 0:00:44]} 50...
Kg4 {[%clk 0:00:40.9]} 51. Kg2 {[%clk 0:00:44.9]} 51... Kf4 {[%clk 0:00:41.3]}
52. Kh2 {[%clk 0:00:45.8]} 52... f5 {[%clk 0:00:41]} 53. Kg2 {[%clk 0:00:46.7]}
53... f6 {[%clk 0:00:41.2]} 54. Kh2 {[%clk 0:00:47.6]} 54... Ke4 {[%clk
0:00:41.3]} 55. Kg1 {[%clk 0:00:48.5]} 55... Kd4 {[%clk 0:00:42.2]} 56. Kh2
{[%clk 0:00:49.4]} 56... Kc3 {[%clk 0:00:42.9]} 57. Kg1 {[%clk 0:00:50.3]} 57...
Kb2 {[%clk 0:00:43.8]} 58. Kh1 {[%clk 0:00:51.2]} 58... Ka1 {[%clk 0:00:44.7]}
59. Kh2 {[%clk 0:00:52.1]} 59... Ka2 {[%clk 0:00:45.6]} 60. Kg2 {[%clk 0:00:53]}
60... Ka3 {[%clk 0:00:46.5]} 61. Kh2 {[%clk 0:00:53.9]} 61... Ka4 {[%clk
0:00:47.4]} 62. Kg2 {[%clk 0:00:54.8]} 62... Ka5 {[%clk 0:00:48.3]} 63. Kh2
{[%clk 0:00:55.7]} 63... Ka6 {[%clk 0:00:49.2]} 64. Kg2 {[%clk 0:00:56.6]} 64...
Ka7 {[%clk 0:00:50.1]} 65. Kh2 {[%clk 0:00:57.5]} 65... Ka8 {[%clk 0:00:51]} 66.
Kg2 {[%clk 0:00:58.4]} 66... Kb8 {[%clk 0:00:51.8]} 67. Kh2 {[%clk 0:00:59.3]}
67... Kc8 {[%clk 0:00:52.7]} 68. Kg2 {[%clk 0:01:00.2]} 68... Kd8 {[%clk
0:00:53.6]} 69. Kh2 {[%clk 0:01:01.1]} 69... Ke8 {[%clk 0:00:54.5]} 70. Kg2
{[%clk 0:01:02]} 70... Kf8 {[%clk 0:00:55.4]} 71. Kh2 {[%clk 0:01:02.9]} 71...
Kg8 {[%clk 0:00:56.3]} 72. Kg2 {[%clk 0:01:03.8]} 72... Kh8 {[%clk 0:00:57.2]}
73. Kh2 {[%clk 0:01:04.7]} 73... f4 {[%clk 0:00:58.1]} 74. Kg2 {[%clk
0:01:05.6]} 74... Kh7 {[%clk 0:00:58.8]} 75. Kh2 {[%clk 0:01:06.5]} 75... Kg6
{[%clk 0:00:59.7]} 76. Kg2 {[%clk 0:01:07.4]} 76... Kf5 {[%clk 0:01:00.6]} 77.
Kh2 {[%clk 0:01:08.3]} 77... g4 {[%clk 0:01:01.5]} 78. Kg2 {[%clk 0:01:09.2]}
78... Kg5 {[%clk 0:01:02.4]} 79. Kh2 {[%clk 0:01:10.1]} 79... f5 {[%clk
0:01:03.3]} 80. Kg2 {[%clk 0:01:11]} 80... h4 {[%clk 0:01:04.2]} 81. Kh2 {[%clk
0:01:11.9]} 81... h3 {[%clk 0:01:05.1]} 82. Kg1 {[%clk 0:01:12.2]} 82... Kh4
{[%clk 0:01:06]} 83. Kh1 {[%clk 0:01:13.1]} 83... Kg3 {[%clk 0:01:06.9]} 84. Kg1
{[%clk 0:01:14]} 84... Kf3 {[%clk 0:01:07.8]} 85. Kh1 {[%clk 0:01:14.9]} 85...
h2 {[%clk 0:01:07.7]} 86. Kxh2 {[%clk 0:01:15.8]} 86... Kf2 {[%clk 0:01:07]} 87.
Kh1 {[%clk 0:01:16.2]} 87... f3 {[%clk 0:01:07.4]} 88. Kh2 {[%clk 0:01:17.1]}
88... g3+ {[%clk 0:01:07.5]} 89. Kh3 {[%clk 0:01:17.3]} 89... g2 {[%clk
0:01:08.2]} 90. Kh4 {[%clk 0:01:18.2]} 90... g1=Q {[%clk 0:01:08.6]} 91. Kh5
{[%clk 0:01:18.8]} 91... Qg7 {[%clk 0:01:09]} 92. Kh4 {[%clk 0:01:19.2]} 92...
Qg6 {[%clk 0:01:09.7]} 93. Kh3 {[%clk 0:01:19.5]} 93... Qg5 {[%clk 0:01:10.4]}
94. Kh2 {[%clk 0:01:20.4]} 94... Qg4 {[%clk 0:01:11]} 95. Kh1 {[%clk 0:01:21.3]}
95... Qg2# {[%clk 0:01:10.7]} 0-1

[Event "Early-Titled-Tuesday-Blitz-May-28-2024"]
[Site "Chess.com"]
[Date "2024.05.28"]
[Round "2"]
[White "ilya2700"]
[Black "FollowRivers"]
[Result "1-0"]
[WhiteElo "2195"]
[BlackElo "2459"]
[TimeControl "180+1"]
[EndTime "8:18:55 PDT"]
[Termination "ilya2700 won on time"]

1. e4 {[%clk 0:02:59.8]} 1... c5 {[%clk 0:02:57.8]} 2. c4 {[%clk 0:02:59.8]}
2... g6 {[%clk 0:02:57.2]} 3. Ne2 {[%clk 0:02:59.7]} 3... Bg7 {[%clk 0:02:57.8]}
4. d4 {[%clk 0:03:00]} 4... cxd4 {[%clk 0:02:58.2]} 5. Nxd4 {[%clk 0:03:00.2]}
5... Nc6 {[%clk 0:02:58.8]} 6. Be3 {[%clk 0:03:00.2]} 6... Nf6 {[%clk
0:02:58.4]} 7. Nc3 {[%clk 0:03:00.3]} 7... O-O {[%clk 0:02:58.8]} 8. Be2 {[%clk
0:03:00]} 8... d6 {[%clk 0:02:57.5]} 9. O-O {[%clk 0:02:59.9]} 9... Nxd4 {[%clk
0:02:54.7]} 10. Bxd4 {[%clk 0:02:58]} 10... a5 {[%clk 0:02:55.4]} 11. f3 {[%clk
0:02:57.8]} 11... Bd7 {[%clk 0:02:53.8]} 12. b3 {[%clk 0:02:57.1]} 12... Bc6
{[%clk 0:02:53.5]} 13. Rc1 {[%clk 0:02:53.3]} 13... Nd7 {[%clk 0:02:53.4]} 14.
Be3 {[%clk 0:02:53.7]} 14... Nc5 {[%clk 0:02:53.6]} 15. Qd2 {[%clk 0:02:46.8]}
15... e6 {[%clk 0:02:34.4]} 16. Rfd1 {[%clk 0:02:43.7]} 16... Be5 {[%clk
0:02:34.1]} 17. Qe1 {[%clk 0:02:36.2]} 17... Qf6 {[%clk 0:02:30.6]} 18. g3
{[%clk 0:02:15.1]} 18... h5 {[%clk 0:02:25.6]} 19. h4 {[%clk 0:02:06.5]} 19...
Rfe8 {[%clk 0:02:12.8]} 20. Nb5 {[%clk 0:01:55.4]} 20... Bxb5 {[%clk 0:01:57.7]}
21. cxb5 {[%clk 0:01:54.8]} 21... Qe7 {[%clk 0:01:51.1]} 22. f4 {[%clk
0:01:50.6]} 22... Bg7 {[%clk 0:01:34.9]} 23. e5 {[%clk 0:01:49.8]} 23... Ne4
{[%clk 0:01:25.4]} 24. exd6 {[%clk 0:01:41.3]} 24... Nxd6 {[%clk 0:01:15.2]} 25.
Bc5 {[%clk 0:01:40.1]} 25... Red8 {[%clk 0:01:15.7]} 26. Bf3 {[%clk 0:01:21.4]}
26... Rac8 {[%clk 0:01:08.8]} 27. Bxd6 {[%clk 0:01:18.4]} 27... Qd7 {[%clk
0:00:29.6]} 28. Rxc8 {[%clk 0:01:09.9]} 28... Rxc8 {[%clk 0:00:27]} 29. Be5
{[%clk 0:01:07.5]} 29... Qxb5 {[%clk 0:00:24.9]} 30. Bxg7 {[%clk 0:01:07.5]}
30... Kxg7 {[%clk 0:00:25.8]} 31. Qf2 {[%clk 0:01:02.1]} 31... Kh7 {[%clk
0:00:21.4]} 32. Kg2 {[%clk 0:00:57.1]} 32... a4 {[%clk 0:00:21.2]} 33. bxa4
{[%clk 0:00:55.8]} 33... Qxa4 {[%clk 0:00:21.4]} 34. Rd2 {[%clk 0:00:56.5]}
34... Rc1 {[%clk 0:00:20.6]} 35. Qe2 {[%clk 0:00:43.9]} 35... Qb4 {[%clk
0:00:18.4]} 36. Rc2 {[%clk 0:00:31.9]} 36... Ra1 {[%clk 0:00:18.2]} 37. Rc7
{[%clk 0:00:29.7]} 37... Qd4 {[%clk 0:00:14.7]} 38. Rxf7+ {[%clk 0:00:28.2]}
38... Kg8 {[%clk 0:00:14.2]} 39. Qxe6 {[%clk 0:00:19.1]} 39... Qg1+ {[%clk
0:00:02.6]} 40. Kh3 {[%clk 0:00:18.8]} 40... Qf1+ {[%clk 0:00:01.8]} 41. Bg2
{[%clk 0:00:18.9]} 1-0

[Event "Early-Titled-Tuesday-Blitz-May-28-2024"]
[Site "Chess.com"]
[Date "2024.05.28"]
[Round "2"]
[White "Attacker_2006"]
[Black "youngdinousaur"]
[Result "1-0"]
[WhiteElo "2524"]
[BlackElo "2303"]
[TimeControl "180+1"]
[EndTime "8:18:56 PDT"]
[Termination "Attacker_2006 won on time"]

1. h4 {[%clk 0:03:00.9]} 1... Nf6 {[%clk 0:02:55.3]} 2. h5 {[%clk 0:03:01.1]}
2... h6 {[%clk 0:02:51]} 3. a4 {[%clk 0:03:01.4]} 3... d5 {[%clk 0:02:48.4]} 4.
d4 {[%clk 0:03:00.2]} 4... c5 {[%clk 0:02:47]} 5. Nf3 {[%clk 0:02:50.7]} 5...
Bg4 {[%clk 0:02:39.9]} 6. dxc5 {[%clk 0:02:44.2]} 6... Bxh5 {[%clk 0:02:38.1]}
7. Bf4 {[%clk 0:02:41.3]} 7... Nc6 {[%clk 0:02:33.4]} 8. Nc3 {[%clk 0:02:40.7]}
8... Bg6 {[%clk 0:02:29.2]} 9. Nb5 {[%clk 0:02:40.2]} 9... Rc8 {[%clk
0:02:20.9]} 10. e3 {[%clk 0:02:39.5]} 10... a6 {[%clk 0:02:20.5]} 11. Nbd4
{[%clk 0:02:39.1]} 11... e6 {[%clk 0:02:19.2]} 12. Nxc6 {[%clk 0:02:37.1]} 12...
bxc6 {[%clk 0:02:08.3]} 13. b4 {[%clk 0:02:38]} 13... a5 {[%clk 0:02:06.1]} 14.
c3 {[%clk 0:02:37.4]} 14... Ne4 {[%clk 0:02:02.9]} 15. Qc1 {[%clk 0:02:30.6]}
15... Be7 {[%clk 0:02:03.1]} 16. Ba6 {[%clk 0:02:28.8]} 16... Bf6 {[%clk
0:01:51.4]} 17. Be5 {[%clk 0:02:13.8]} 17... Rb8 {[%clk 0:01:39]} 18. O-O {[%clk
0:02:09.7]} 18... Bxe5 {[%clk 0:01:29.7]} 19. Nxe5 {[%clk 0:02:10.6]} 19... Qc7
{[%clk 0:01:28.1]} 20. Nxc6 {[%clk 0:01:59]} 20... Qxc6 {[%clk 0:01:25.5]} 21.
Bb5 {[%clk 0:01:58.5]} 21... Rxb5 {[%clk 0:01:26]} 22. axb5 {[%clk 0:01:59.4]}
22... Qxb5 {[%clk 0:01:22.8]} 23. Rxa5 {[%clk 0:01:59.6]} 23... Qb7 {[%clk
0:01:18.2]} 24. f3 {[%clk 0:01:57.9]} 24... Nf6 {[%clk 0:01:15.4]} 25. b5 {[%clk
0:01:57.4]} 25... O-O {[%clk 0:01:13.4]} 26. Qa3 {[%clk 0:01:55.4]} 26... Bd3
{[%clk 0:01:07.1]} 27. Rd1 {[%clk 0:01:44.7]} 27... Bc4 {[%clk 0:01:01.1]} 28.
Qb4 {[%clk 0:01:36.9]} 28... Rb8 {[%clk 0:00:59.7]} 29. c6 {[%clk 0:01:35.9]}
29... Qb6 {[%clk 0:00:59]} 30. Kf2 {[%clk 0:01:27.9]} 30... g5 {[%clk
0:00:47.1]} 31. Ra6 {[%clk 0:01:22]} 31... Qxb5 {[%clk 0:00:25.2]} 32. c7 {[%clk
0:01:16.2]} 32... Rc8 {[%clk 0:00:17.2]} 33. Ra7 {[%clk 0:00:59.7]} 33... Qxb4
{[%clk 0:00:16.2]} 34. cxb4 {[%clk 0:01:00.4]} 34... Ne8 {[%clk 0:00:16.6]} 35.
b5 {[%clk 0:00:55.5]} 35... Rxc7 {[%clk 0:00:16.6]} 36. b6 {[%clk 0:00:54.2]}
36... Rc6 {[%clk 0:00:05.7]} 37. Rb1 {[%clk 0:00:45.2]} 37... Nd6 {[%clk
0:00:05.8]} 38. Rd7 {[%clk 0:00:39.4]} 38... Kg7 {[%clk 0:00:03.2]} 39. b7
{[%clk 0:00:38.6]} 39... Nxb7 {[%clk 0:00:03.2]} 40. Rbxb7 {[%clk 0:00:39.3]}
40... Kg6 {[%clk 0:00:03.7]} 41. Rxf7 {[%clk 0:00:39.7]} 41... e5 {[%clk
0:00:03]} 42. g4 {[%clk 0:00:39.6]} 42... d4 {[%clk 0:00:03.2]} 43. Rg7+ {[%clk
0:00:39.4]} 43... Kf6 {[%clk 0:00:03.1]} 44. exd4 {[%clk 0:00:40]} 44... exd4
{[%clk 0:00:03.1]} 45. Rh7 {[%clk 0:00:40.6]} 45... Bf7 {[%clk 0:00:01.3]} 46.
Rbxf7+ {[%clk 0:00:39.9]} 46... Ke5 {[%clk 0:00:02.2]} 47. Re7+ {[%clk
0:00:40.2]} 47... Kf4 {[%clk 0:00:02.8]} 48. Rhf7+ {[%clk 0:00:40.6]} 1-0

[Event "Early-Titled-Tuesday-Blitz-May-28-2024"]
[Site "Chess.com"]
[Date "2024.05.28"]
[Round "2"]
[White "ailime26"]
[Black "Actuary44"]
[Result "0-1"]
[WhiteElo "2107"]
[BlackElo "2463"]
[TimeControl "180+1"]
[EndTime "8:18:57 PDT"]
[Termination "Actuary44 won on time"]

1. Nf3 {[%clk 0:02:59.1]} 1... d6 {[%clk 0:02:59.8]} 2. g3 {[%clk 0:02:59.2]}
2... e5 {[%clk 0:02:59.9]} 3. d3 {[%clk 0:02:53.3]} 3... f5 {[%clk 0:02:59.5]}
4. Bg2 {[%clk 0:02:52.3]} 4... g6 {[%clk 0:02:58.8]} 5. b3 {[%clk 0:02:51.6]}
5... Bg7 {[%clk 0:02:59]} 6. Bb2 {[%clk 0:02:51.5]} 6... Ne7 {[%clk 0:02:59.2]}
7. Nbd2 {[%clk 0:02:51.2]} 7... O-O {[%clk 0:02:59.8]} 8. O-O {[%clk 0:02:51.1]}
8... f4 {[%clk 0:02:58.8]} 9. c4 {[%clk 0:02:49.4]} 9... fxg3 {[%clk 0:02:57.2]}
10. hxg3 {[%clk 0:02:48.1]} 10... Bg4 {[%clk 0:02:56.8]} 11. Rc1 {[%clk
0:02:44.4]} 11... Nbc6 {[%clk 0:02:56.3]} 12. a3 {[%clk 0:02:39.8]} 12... Qd7
{[%clk 0:02:55.3]} 13. Rc2 {[%clk 0:02:39.2]} 13... Bh3 {[%clk 0:02:52.8]} 14.
Qa1 {[%clk 0:02:34.7]} 14... Bxg2 {[%clk 0:02:51.7]} 15. Kxg2 {[%clk 0:02:34.6]}
15... h6 {[%clk 0:02:46]} 16. d4 {[%clk 0:02:29.7]} 16... Qf5 {[%clk 0:02:33.1]}
17. Rcc1 {[%clk 0:02:21]} 17... e4 {[%clk 0:02:29.5]} 18. Nh4 {[%clk 0:02:12.7]}
18... Qg4 {[%clk 0:02:28.1]} 19. d5 {[%clk 0:02:04.8]} 19... Ne5 {[%clk
0:02:21.6]} 20. f3 {[%clk 0:01:34.7]} 20... exf3+ {[%clk 0:02:21.6]} 21. exf3
{[%clk 0:01:34.8]} 21... Qh5 {[%clk 0:01:45.5]} 22. f4 {[%clk 0:01:24.9]} 22...
Qe2+ {[%clk 0:01:09.6]} 23. Rf2 {[%clk 0:01:22.8]} 23... Qxf2+ {[%clk
0:01:08.3]} 24. Kxf2 {[%clk 0:01:17.8]} 24... Nd3+ {[%clk 0:01:08.7]} 25. Ke2
{[%clk 0:00:50.7]} 25... Bxb2 {[%clk 0:01:05.7]} 26. Qb1 {[%clk 0:00:37.2]}
26... Nxc1+ {[%clk 0:01:02.8]} 27. Kd1 {[%clk 0:00:35.4]} 27... Bxa3 {[%clk
0:00:57.5]} 28. Qa2 {[%clk 0:00:34.4]} 28... Nxb3 {[%clk 0:00:42.9]} 29. Nxb3
{[%clk 0:00:24.1]} 29... Bb4 {[%clk 0:00:41.9]} 30. Qc2 {[%clk 0:00:19.8]} 30...
Kg7 {[%clk 0:00:40.6]} 31. Qe4 {[%clk 0:00:19.4]} 31... Rae8 {[%clk 0:00:39.2]}
32. Qd4+ {[%clk 0:00:19.6]} 32... Kh7 {[%clk 0:00:36.5]} 33. Qxa7 {[%clk
0:00:18.5]} 33... g5 {[%clk 0:00:26.9]} 34. Qxb7 {[%clk 0:00:06.2]} 34... Bc3
{[%clk 0:00:26.8]} 35. Nf3 {[%clk 0:00:05.6]} 35... gxf4 {[%clk 0:00:21.8]} 36.
Qxc7 {[%clk 0:00:05]} 36... fxg3 {[%clk 0:00:20.7]} 37. Nh4 {[%clk 0:00:02.5]}
37... Be5 {[%clk 0:00:09.9]} 0-1

[Event "Early-Titled-Tuesday-Blitz-May-28-2024"]
[Site "Chess.com"]
[Date "2024.05.28"]
[Round "2"]
[White "Malev212"]
[Black "DominguezOnYoutube"]
[Result "0-1"]
[WhiteElo "2624"]
[BlackElo "2993"]
[TimeControl "180+1"]
[EndTime "8:18:58 PDT"]
[Termination "DominguezOnYoutube won on time"]

1. e4 {[%clk 0:03:00.9]} 1... c5 {[%clk 0:02:59.2]} 2. Nf3 {[%clk 0:02:59.5]}
2... d6 {[%clk 0:02:59.8]} 3. Bb5+ {[%clk 0:02:57.6]} 3... Nd7 {[%clk
0:02:58.6]} 4. a4 {[%clk 0:02:50.7]} 4... Nf6 {[%clk 0:02:57.3]} 5. Nc3 {[%clk
0:02:45.7]} 5... g6 {[%clk 0:02:54.5]} 6. a5 {[%clk 0:02:41.8]} 6... a6 {[%clk
0:02:50.1]} 7. Be2 {[%clk 0:02:39.9]} 7... Bg7 {[%clk 0:02:49.9]} 8. O-O {[%clk
0:02:39.6]} 8... O-O {[%clk 0:02:49.4]} 9. d3 {[%clk 0:02:39.3]} 9... b5 {[%clk
0:02:47.4]} 10. axb6 {[%clk 0:02:38.1]} 10... a5 {[%clk 0:02:46.9]} 11. Qe1
{[%clk 0:02:26.2]} 11... Bb7 {[%clk 0:02:33.1]} 12. Nd2 {[%clk 0:02:21.7]} 12...
Nxb6 {[%clk 0:02:27.5]} 13. f4 {[%clk 0:02:21.1]} 13... Nfd7 {[%clk 0:02:21.4]}
14. f5 {[%clk 0:02:03.6]} 14... a4 {[%clk 0:02:20.6]} 15. Ra3 {[%clk 0:02:01.5]}
15... Ne5 {[%clk 0:01:56]} 16. Qh4 {[%clk 0:01:54]} 16... Bc6 {[%clk 0:01:40.7]}
17. Nf3 {[%clk 0:01:47.2]} 17... Nbd7 {[%clk 0:01:10.3]} 18. Bg5 {[%clk
0:01:38.3]} 18... Bf6 {[%clk 0:00:54.4]} 19. Bxf6 {[%clk 0:01:22.5]} 19... exf6
{[%clk 0:00:54.1]} 20. fxg6 {[%clk 0:01:13.8]} 20... fxg6 {[%clk 0:00:47.7]} 21.
Raa1 {[%clk 0:00:55.3]} 21... Kg7 {[%clk 0:00:42.1]} 22. Qg3 {[%clk 0:00:52.8]}
22... Qb6 {[%clk 0:00:40.9]} 23. Rab1 {[%clk 0:00:51]} 23... Rab8 {[%clk
0:00:34.8]} 24. Kh1 {[%clk 0:00:48.8]} 24... Qd8 {[%clk 0:00:31.7]} 25. Nd2
{[%clk 0:00:39.9]} 25... Rb4 {[%clk 0:00:29.5]} 26. Bg4 {[%clk 0:00:30.5]} 26...
Qe7 {[%clk 0:00:25.7]} 27. Bxd7 {[%clk 0:00:29.4]} 27... Qxd7 {[%clk 0:00:25.6]}
28. Nf3 {[%clk 0:00:21.1]} 28... Qe7 {[%clk 0:00:25.4]} 29. Nh4 {[%clk
0:00:19.6]} 29... Kh8 {[%clk 0:00:25.5]} 30. Rf2 {[%clk 0:00:16.3]} 30... Rb7
{[%clk 0:00:20.7]} 31. h3 {[%clk 0:00:16.2]} 31... Qd8 {[%clk 0:00:20]} 32. Rd2
{[%clk 0:00:12.5]} 32... Qb6 {[%clk 0:00:18.8]} 33. Ne2 {[%clk 0:00:10.5]} 33...
a3 {[%clk 0:00:17.3]} 34. b3 {[%clk 0:00:09.9]} 34... Qa5 {[%clk 0:00:17.7]} 35.
Rdd1 {[%clk 0:00:09.3]} 35... a2 {[%clk 0:00:17.3]} 36. Ra1 {[%clk 0:00:08.7]}
36... Qa3 {[%clk 0:00:17.8]} 37. Nf3 {[%clk 0:00:05.2]} 37... Qb2 {[%clk
0:00:15.9]} 38. Rdc1 {[%clk 0:00:04.7]} 38... Rbf7 {[%clk 0:00:14.8]} 39. Nf4
{[%clk 0:00:02.7]} 39... f5 {[%clk 0:00:14.1]} 40. Ng5 {[%clk 0:00:00.8]} 40...
Re7 {[%clk 0:00:13.5]} 41. Qh4 {[%clk 0:00:01.4]} 41... fxe4 {[%clk 0:00:10.4]}
42. Rf1 {[%clk 0:00:01]} 42... Kg8 {[%clk 0:00:09.8]} 0-1

[Event "Early-Titled-Tuesday-Blitz-May-28-2024"]
[Site "Chess.com"]
[Date "2024.05.28"]
[Round "2"]
[White "FMStan15"]
[Black "MeisterJabo"]
[Result "1-0"]
[WhiteElo "2151"]
[BlackElo "2455"]
[TimeControl "180+1"]
[EndTime "8:18:58 PDT"]
[Termination "FMStan15 won by checkmate"]

1. e4 {[%clk 0:02:53.2]} 1... e5 {[%clk 0:02:59.4]} 2. Nf3 {[%clk 0:02:49.3]}
2... Nc6 {[%clk 0:02:56.7]} 3. Bb5 {[%clk 0:02:44.9]} 3... a6 {[%clk 0:02:38.7]}
4. Bxc6 {[%clk 0:02:44.3]} 4... dxc6 {[%clk 0:02:38.6]} 5. O-O {[%clk
0:02:45.2]} 5... f6 {[%clk 0:02:37.7]} 6. d4 {[%clk 0:02:44.2]} 6... exd4 {[%clk
0:02:37.8]} 7. Nxd4 {[%clk 0:02:44.3]} 7... Bc5 {[%clk 0:02:37]} 8. Qh5+ {[%clk
0:02:43.3]} 8... g6 {[%clk 0:02:17.8]} 9. Qxc5 {[%clk 0:02:43.1]} 9... Ne7
{[%clk 0:02:11]} 10. Qc3 {[%clk 0:02:42.7]} 10... O-O {[%clk 0:02:10.3]} 11. Bh6
{[%clk 0:02:41.5]} 11... Re8 {[%clk 0:02:08.9]} 12. Qb3+ {[%clk 0:02:40.3]}
12... Kh8 {[%clk 0:02:08.1]} 13. Be3 {[%clk 0:02:28.4]} 13... Qd6 {[%clk
0:01:58.4]} 14. Nc3 {[%clk 0:02:23.3]} 14... c5 {[%clk 0:01:56]} 15. Nf3 {[%clk
0:02:22.6]} 15... Be6 {[%clk 0:01:55.2]} 16. Qa3 {[%clk 0:02:20.6]} 16... b6
{[%clk 0:01:53.3]} 17. Rad1 {[%clk 0:02:20.7]} 17... Qc6 {[%clk 0:01:52.7]} 18.
b3 {[%clk 0:02:11.4]} 18... Bg4 {[%clk 0:01:46]} 19. Qc1 {[%clk 0:02:07]} 19...
Qe6 {[%clk 0:01:40.4]} 20. Qd2 {[%clk 0:02:01.9]} 20... Bxf3 {[%clk 0:01:30.2]}
21. gxf3 {[%clk 0:02:01.4]} 21... Qh3 {[%clk 0:01:31.1]} 22. Qe2 {[%clk
0:01:58.6]} 22... Nc6 {[%clk 0:01:30.1]} 23. f4 {[%clk 0:01:46.1]} 23... Nd4
{[%clk 0:00:59.7]} 24. Bxd4 {[%clk 0:01:41.9]} 24... cxd4 {[%clk 0:01:00.6]} 25.
Rd3 {[%clk 0:01:35.6]} 25... Qh4 {[%clk 0:00:54.7]} 26. Nd5 {[%clk 0:01:27.9]}
26... c5 {[%clk 0:00:50.7]} 27. Nc7 {[%clk 0:01:19.3]} 27... Qxf4 {[%clk
0:00:45.4]} 28. Nxa8 {[%clk 0:01:15.6]} 28... Rxe4 {[%clk 0:00:38]} 29. Qf3
{[%clk 0:01:15.5]} 29... Qg5+ {[%clk 0:00:37.8]} 30. Kh1 {[%clk 0:01:14.4]}
30... Rf4 {[%clk 0:00:32.4]} 31. Qg3 {[%clk 0:01:11.6]} 31... Rg4 {[%clk
0:00:30.2]} 32. Qf3 {[%clk 0:01:02.8]} 32... Rf4 {[%clk 0:00:29.8]} 33. Qc6
{[%clk 0:00:57.1]} 33... Qh4 {[%clk 0:00:17.1]} 34. Rg3 {[%clk 0:00:54.4]} 34...
Rf5 {[%clk 0:00:11.5]} 35. Qc8+ {[%clk 0:00:53.1]} 35... Kg7 {[%clk 0:00:11.8]}
36. Qb7+ {[%clk 0:00:52.5]} 36... Kh6 {[%clk 0:00:11.9]} 37. Qg2 {[%clk
0:00:52.3]} 37... Kg7 {[%clk 0:00:11.4]} 38. Nc7 {[%clk 0:00:50]} 38... Qf4
{[%clk 0:00:10.9]} 39. Ne6+ {[%clk 0:00:49.7]} 39... Kf7 {[%clk 0:00:08.4]} 40.
Nxf4 {[%clk 0:00:49.8]} 40... Rxf4 {[%clk 0:00:09.3]} 41. Qb7+ {[%clk
0:00:49.3]} 41... Kg8 {[%clk 0:00:07.5]} 42. Rh3 {[%clk 0:00:48.6]} 42... h5
{[%clk 0:00:05.8]} 43. Rg1 {[%clk 0:00:47.8]} 43... g5 {[%clk 0:00:04.3]} 44.
Rxh5 {[%clk 0:00:47.3]} 44... Rxf2 {[%clk 0:00:04.5]} 45. Qh7+ {[%clk
0:00:46.3]} 45... Kf8 {[%clk 0:00:04.8]} 46. Qh8+ {[%clk 0:00:46.2]} 46... Ke7
{[%clk 0:00:05.4]} 47. Rh7+ {[%clk 0:00:46.5]} 47... Ke6 {[%clk 0:00:06]} 48.
Qe8+ {[%clk 0:00:45.5]} 48... Kf5 {[%clk 0:00:06.6]} 49. Qc8+ {[%clk 0:00:42.5]}
49... Kg6 {[%clk 0:00:04.6]} 50. Rh8 {[%clk 0:00:37]} 50... Rxc2 {[%clk
0:00:01.9]} 51. Rg8+ {[%clk 0:00:33.1]} 51... Kf7 {[%clk 0:00:01.7]} 52. Qe8#
{[%clk 0:00:32.2]} 1-0